lending/lending_fUSD_20250121
["ID","MTS","AMOUNT","RATE_DAILY","PERIOD"]
[349785874,1737427831616,-150.0,0.00019699,2]
[349785875,1737427831626,-250.0,0.00020252,2]
[349785876,1737427831812,-250.0,0.00020265,2]
[349785877,1737427831822,-1000.0,0.00020299,2]
[349785878,1737427831831,-250.0,0.00020374,2]
[349785879,1737427831841,-4212.61504092,0.00020444,2]
[349785880,1737427831852,-7089.84544227,0.00020444,2]
[349785881,1737427831863,-762.17542217,0.00020444,2]
[349785882,1737427831878,-3214.97335,0.00020444,2]
[349785883,1737427831889,-5582.71836719,0.00020444,2]
[349785884,1737427831900,-1985.61465988,0.00020444,2]
[349785885,1737427831911,-485.82690168,0.00020444,2]
[349785886,1737427831922,-566.23081589,0.00020444,2]
[349785887,1737427831932,-14.64809478,0.00020446,2]
[349785888,1737427831951,-166.52190522,0.00020446,2]
[349785889,1737427831961,-394.58481134,0.00020521,2]
[349785890,1737427831973,-550.62852736,0.00020521,2]
[349785891,1737427831985,-554.7866613,0.00020521,2]
[349785892,1737427831994,-787.43,0.00020567,30]
[349785893,1737427832003,-340.24,0.00020648,2]
[349785894,1737427832012,-346.13,0.00020761,2]
[349785896,1737427832021,-914.392,0.00020761,2]
[349785898,1737427832030,-643.14,0.00020771,2]
[349785900,1737427832039,-175.39,0.00020858,2]
[349785902,1737427832048,-206.9,0.00020892,2]
[349785904,1737427832057,-946.26,0.00020914,2]
[349785906,1737427832066,-171.0,0.00021,2]
[349785908,1737427832075,-11158.0,0.00021,2]
[349785910,1737427832084,-162.0,0.00021122,2]
[349785912,1737427832093,-438.48,0.00021123,2]
[349785914,1737427832102,-438.48,0.00021123,2]
[349785916,1737427832111,-438.48,0.00021123,2]
[349785918,1737427832120,-639.93,0.00021123,2]
[349785919,1737427832129,-438.48,0.00021123,2]
[349785921,1737427832138,-9767.0,0.00021133,2]
[349785923,1737427832148,-152.0,0.00021144,3]
[349785925,1737427832156,-216.0,0.00021342,2]
[349785927,1737427832166,-510.7,0.00021388,2]
[349785929,1737427832175,-438.4,0.00021388,2]
[349785932,1737427832184,-438.4,0.00021388,2]
[349785935,1737427832193,-438.4,0.00021388,2]
[349785938,1737427832201,-438.4,0.00021388,2]
[349785941,1737427832210,-438.4,0.00021388,2]
[349785944,1737427832221,-438.4,0.00021388,2]
[349785947,1737427832230,-445.38,0.00021388,2]
[349785949,1737427832239,-1773.0,0.000215,5]
[349785951,1737427832248,-152.43,0.00021534,2]
[349785953,1737427832257,-150.0,0.00021534,2]
[349785955,1737427832266,-150.0,0.00021534,2]
[349785957,1737427832276,-469.6856373,0.0002156,2]
[349785960,1737427832285,-1438.0,0.000217,2]
[349785962,1737427832295,-321.73066322,0.00021702,2]
[349785964,1737427832304,-3000.0,0.0002178,2]
[349785965,1737427832316,-592.42586081,0.000218,2]
[349785967,1737427832325,-1099.0975,0.000218,2]
[349785969,1737427832334,-500.0,0.00021824,2]
[349785971,1737427832344,-500.0,0.0002189,2]
[349785973,1737427832353,-2500.0,0.00021899,2]
[349785975,1737427832362,-5000.0,0.000219,2]
[349785977,1737427832371,-1000.0,0.000219,2]
[349785979,1737427832381,-1238.22,0.000219,31]
[349785981,1737427832392,-1238.22,0.000219,31]
[349785983,1737427832401,-1238.22,0.000219,31]
[349785985,1737427832409,-1238.22,0.000219,31]
[349785987,1737427832418,-1238.22,0.000219,31]
[349785989,1737427832427,-1238.22,0.000219,31]
[349785991,1737427832436,-1238.22,0.000219,31]
[349785993,1737427832445,-1238.22,0.000219,31]
[349785995,1737427832454,-1238.22,0.000219,31]
[349785997,1737427832463,-1238.22,0.000219,31]
[349785999,1737427832472,-1238.22,0.000219,31]
[349786001,1737427832481,-1238.22,0.000219,31]
[349786003,1737427832489,-1238.22,0.000219,31]
[349786005,1737427832498,-1238.22,0.000219,31]
[349786007,1737427832507,-1238.22,0.000219,31]
[349786009,1737427832516,-1238.22,0.000219,31]
[349786011,1737427832524,-259.47905253,0.000219,2]
[349786013,1737427832534,-1604.45291084,0.000219,2]
[349786015,1737427832543,-217.51035321,0.000219,3]
[349786016,1737427832553,-5900.09473643,0.000219,2]
[349786018,1737427832562,-150.0,0.00021918,2]
[349786020,1737427832570,-150.0,0.00021973,4]
[349786022,1737427832579,-500.0,0.00021989,2]
[349786024,1737427832588,-500.0,0.00021989,2]
[349786026,1737427832597,-500.0,0.00021989,2]
[349786028,1737427832607,-500.0,0.00021989,2]
[349786030,1737427832616,-500.0,0.00021989,2]
[349786032,1737427832625,-500.0,0.00021989,2]
[349786034,1737427832634,-424.75063229,0.00021989,2]
[349786036,1737427832643,-500.0,0.00021989,2]
[349786038,1737427832652,-545.64,0.00021989,2]
[349786040,1737427832661,-500.0,0.00021989,2]
[349786042,1737427832670,-500.0,0.00021989,2]
[349786044,1737427832680,-500.0,0.00021989,2]
[349786046,1737427832690,-500.0,0.00021989,2]
[349786048,1737427832699,-450.0,0.00021989,2]
[349786050,1737427832708,-39575.05344626,0.0002199,2]
[349786084,1737427837330,-500.0,0.00021989,2]
[349786085,1737427837341,-811.351313,0.0002199,2]
[349786086,1737427837354,-1072.35,0.0002199,2]
[349786087,1737427837488,-104181.93292696,0.0002199,2]
[349786088,1737427837498,-1670.978812,0.0002199,29]
[349786089,1737427837508,-354.593981,0.0002199,2]
[349786090,1737427837519,-365.1554225,0.00021998,2]
[349786091,1737427837530,-4515.7006173,0.00021998,2]
[349786092,1737427837541,-2000.0,0.00021999,2]
[349786093,1737427837553,-2000.0,0.00021999,2]
[349786094,1737427837563,-2000.0,0.00021999,2]
[349786095,1737427837575,-2000.0,0.00021999,2]
[349786096,1737427837586,-2000.0,0.00021999,2]
[349786097,1737427837597,-2000.0,0.00021999,2]
[349786098,1737427837607,-666.0,0.00021999,2]
[349786099,1737427837619,-3531.60611987,0.00021999,2]
[349786100,1737427837630,-500.0,0.00021999,2]
[349786101,1737427837641,-500.0,0.00021999,2]
[349786102,1737427837652,-500.0,0.00021999,2]
[349786103,1737427837663,-422.29471784,0.00021999,2]
[349786104,1737427837674,-500.0,0.00021999,2]
[349786105,1737427837686,-500.0,0.00021999,2]
[349786106,1737427837697,-500.0,0.00021999,2]
[349786107,1737427837707,-500.0,0.00021999,2]
[349786108,1737427837723,-508.22374713,0.00021999,2]
[349786109,1737427837733,-543.72083096,0.00021999,2]
[349786110,1737427837745,-526.55343196,0.00021999,2]
[349786111,1737427837755,-494.0,0.00021999,2]
[349786112,1737427837765,-525.50437458,0.00021999,2]
[349786113,1737427837775,-516.79206882,0.00021999,2]
[349786114,1737427837786,-500.0,0.00021999,2]
[349786115,1737427837796,-515.73344942,0.00021999,2]
[349786116,1737427837807,-533.34259026,0.00021999,2]
[349786117,1737427837816,-515.08856061,0.00021999,2]
[349786118,1737427837826,-500.0,0.00021999,2]
[349786119,1737427837836,-500.0,0.00021999,2]
[349786120,1737427837846,-673.59653589,0.00021999,2]
[349786121,1737427837855,-500.0,0.00021999,2]
[349786122,1737427837865,-520.97446288,0.00021999,2]
[349786123,1737427837874,-347.9534402,0.00021999,2]
[349786124,1737427837884,-500.0,0.00021999,2]
[349786125,1737427837893,-500.0,0.00021999,2]
[349786126,1737427837903,-533.86163843,0.00021999,2]
[349786127,1737427837913,-500.0,0.00021999,2]
[349786128,1737427837923,-150.0,0.00021999,2]
[349786129,1737427837934,-515.06812098,0.00021999,2]
[349786130,1737427837947,-500.0,0.00021999,2]
[349786131,1737427837960,-564.55392954,0.00021999,2]
[349786132,1737427837977,-515.57979137,0.00021999,2]
[349786133,1737427837990,-510.24110207,0.00021999,2]
[349786134,1737427838002,-519.02060703,0.00021999,2]
[349786135,1737427838014,-524.4798246,0.00021999,2]
[349786136,1737427838024,-531.08364953,0.00021999,2]
[349786138,1737427838035,-535.51513515,0.00021999,2]
[349786139,1737427838046,-500.0,0.00021999,2]
[349786140,1737427838057,-550.55,0.00021999,2]
[349786142,1737427838069,-500.0,0.00021999,2]
[349786144,1737427838080,-242.2868559,0.00021999,2]
[349786145,1737427838092,-518.4578454,0.00021999,2]
[349786146,1737427838104,-500.0,0.00021999,2]
[349786147,1737427838120,-305.43,0.00021999,2]
[349786148,1737427838132,-519.05372,0.00021999,2]
[349786149,1737427838144,-519.99826183,0.00021999,2]
[349786150,1737427838156,-519.54237368,0.00021999,2]
[349786151,1737427838167,-500.0,0.00021999,2]
[349786152,1737427838177,-500.0,0.00021999,2]
[349786153,1737427838188,-503.66773774,0.00021999,2]
[349786154,1737427838198,-500.0,0.00021999,2]
[349786155,1737427838208,-500.0,0.00021999,2]
[349786156,1737427838218,-500.0,0.00021999,2]
[349786157,1737427838232,-506.67506671,0.00021999,2]
[349786158,1737427838243,-500.0,0.00021999,2]
[349786159,1737427838255,-510.47400059,0.00021999,2]
[349786160,1737427838266,-513.29686804,0.00021999,2]
[349786161,1737427838277,-519.15433761,0.00021999,2]
[349786162,1737427838289,-500.0,0.00021999,2]
[349786163,1737427838301,-500.0,0.00021999,2]
[349786164,1737427838313,-500.0,0.00021999,2]
[349786165,1737427838325,-500.0,0.00021999,2]
[349786166,1737427838336,-500.0,0.00021999,2]
[349786167,1737427838349,-500.0,0.00021999,2]
[349786168,1737427838360,-500.0,0.00021999,2]
[349786169,1737427838373,-500.0,0.00021999,2]
[349786170,1737427838383,-500.0,0.00021999,2]
[349786171,1737427838394,-915.8,0.00021999,2]
[349786172,1737427838406,-500.0,0.00021999,2]
[349786173,1737427838418,-595.52,0.00021999,2]
[349786174,1737427838428,-1031.44,0.00021999,2]
[349786175,1737427838441,-332.02222254,0.00021999,2]
[349786176,1737427838452,-615.28,0.00021999,2]
[349786177,1737427838463,-500.0,0.00021999,2]
[349786178,1737427838477,-500.0,0.00021999,2]
[349786179,1737427838489,-545.55,0.00021999,2]
[349786180,1737427838501,-500.0,0.00021999,2]
[349786181,1737427838513,-500.0,0.00021999,2]
[349786182,1737427838526,-500.0,0.00021999,2]
[349786183,1737427838537,-500.0,0.00021999,2]
[349786184,1737427838549,-666.0,0.00021999,2]
[349786185,1737427838560,-500.0,0.00021999,2]
[349786186,1737427838571,-500.0,0.00021999,2]
[349786187,1737427838582,-500.0,0.00021999,2]
[349786188,1737427838592,-500.0,0.00021999,2]
[349786189,1737427838603,-677.11,0.00021999,2]
[349786190,1737427838613,-500.0,0.00021999,2]
[349786191,1737427838624,-643.65,0.00021999,2]
[349786192,1737427838635,-1209.89,0.00021999,2]
[349786193,1737427838647,-500.0,0.00021999,2]
[349786194,1737427838660,-500.0,0.00021999,2]
[349786195,1737427838673,-500.0,0.00021999,2]
[349786196,1737427838684,-539.21910221,0.00021999,2]
[349786197,1737427838694,-500.0,0.00021999,2]
[349786198,1737427838704,-500.0,0.00021999,2]
[349786199,1737427838714,-500.0,0.00021999,2]
[349786200,1737427838726,-500.0,0.00021999,2]
[349786201,1737427838737,-500.0,0.00021999,2]
[349786202,1737427838748,-520.99365167,0.00021999,2]
[349786203,1737427838760,-600.88287881,0.00021999,2]
[349786204,1737427838771,-503.80268869,0.00021999,2]
[349786205,1737427838783,-485.0,0.00021999,2]
[349786206,1737427838794,-500.0,0.00021999,2]
[349786207,1737427838805,-500.0,0.00021999,2]
[349786208,1737427838817,-332.5799057,0.00021999,2]
[349786209,1737427838828,-563.65,0.00021999,2]
[349786210,1737427838839,-500.0,0.00021999,2]
[349786211,1737427838849,-500.0,0.00021999,2]
[349786212,1737427838859,-158.450321,0.00021999,2]
[349786213,1737427838869,-595.96,0.00021999,2]
[349786214,1737427838879,-592.44,0.00021999,2]
[349786215,1737427838890,-500.0,0.00021999,2]
[349786216,1737427838900,-500.0,0.00021999,2]
[349786217,1737427838910,-500.0,0.00021999,2]
[349786218,1737427838920,-500.0,0.00021999,2]
[349786219,1737427838931,-500.0,0.00021999,2]
[349786220,1737427838941,-792.13,0.00021999,2]
[349786221,1737427838952,-500.0,0.00021999,2]
[349786222,1737427838962,-500.0,0.00021999,2]
[349786223,1737427838974,-500.0,0.00021999,2]
[349786224,1737427838984,-500.0,0.00021999,2]
[349786225,1737427838995,-500.0,0.00021999,2]
[349786226,1737427839005,-500.0,0.00021999,2]
[349786227,1737427839016,-500.0,0.00021999,2]
[349786228,1737427839026,-545.92,0.00021999,2]
[349786229,1737427839038,-500.0,0.00021999,2]
[349786230,1737427839050,-500.0,0.00021999,2]
[349786231,1737427839062,-500.0,0.00021999,2]
[349786232,1737427839073,-500.0,0.00021999,2]
[349786233,1737427839084,-738.95,0.00021999,2]
[349786234,1737427839095,-560.08,0.00021999,2]
[349786235,1737427839107,-500.0,0.00021999,2]
[349786236,1737427839118,-500.0,0.00021999,2]
[349786237,1737427839129,-532.2668623,0.00021999,2]
[349786238,1737427839141,-944.52,0.00021999,2]
[349786239,1737427839152,-500.83684609,0.00021999,2]
[349786240,1737427839164,-2070.0,0.00021999,2]
[349786241,1737427839174,-220.09225564,0.00022,2]
[349786242,1737427839185,-9424872.63919933,0.00022,2]
[349786243,1737427839196,-1693.51306782,0.00022,2]
[349786244,1737427839207,-2337913.25179552,0.00022,2]
[349786245,1737427839225,-1622.90396317,0.00022,2]
[349786247,1737427839241,-30812.08421271,0.00022,2]
[349786248,1737427839254,-1606.93491821,0.00022,2]
[349786249,1737427839267,-4827.74473643,0.00022,2]
[349786250,1737427839280,-1009.90127476,0.00022,2]
[349786251,1737427839293,-7212.75344783,0.00022,2]
[349786252,1737427839309,-289.76244741,0.00022,2]
[349786253,1737427839326,-9763.4,0.00022,2]
[349786254,1737427839339,-25490.5,0.00022,2]
[349786255,1737427839356,-584.97850091,0.00022,2]
[349786256,1737427839471,-776.12868515,0.00022,2]
[349786257,1737427839779,-5033.52473377,0.00022,2]
[349786258,1737427839812,-2555.48999999,0.00022,2]
[349786259,1737427839825,-11401.6306497,0.00022,2]
[349786260,1737427839881,-34158.78730906,0.00022,2]
[349786261,1737427839920,-711.45999999,0.00022,2]
[349786262,1737427839934,-3002.84950921,0.00022,2]
[349786377,1737427842485,-1000.0,0.0002189,2]
[349786378,1737427842494,-500.0,0.00021989,2]
[349786379,1737427842503,-326.6010473,0.00021999,2]
[349786380,1737427842513,-1983027.18192321,0.00022,2]
[349786381,1737427842551,-143.62814507,0.00022,2]
[349786382,1737427842562,-44880.70010996,0.00022,2]
[349786383,1737427842573,-22962.09038652,0.00022,2]
[349786384,1737427842593,-490.44403302,0.00022,2]
[349786385,1737427842649,-1842.03387161,0.00022,2]
[349786386,1737427842755,-102227.49601959,0.00022,2]
[349786387,1737427842810,-3378.5,0.00022,2]
[349786394,1737427845365,-260.11,0.00021311,2]
[349786395,1737427845374,-500.0,0.00021999,2]
[349786396,1737427845383,-263.36250303,0.00022,2]
[349786397,1737427845470,-2821.0,0.00022,2]
[349786398,1737427845553,-24.68729666,0.00022,2]
[349786399,1737427845565,-4127.56414205,0.00022,2]
[349786400,1737427845700,-117219.83514361,0.00022,2]
[349786427,1737428154185,157.42,0.00010137,2]
[349786428,1737428202806,153.14545122,0.00021,90]
[349786434,1737428965149,-661.51,0.0001875,2]
[349786452,1737429031591,-260.11,0.00020442,2]
[349786454,1737429031601,-178.95,0.00020586,2]
[349786456,1737429031610,-250.0,0.00020612,2]
[349786458,1737429031620,-756.44,0.00020672,30]
[349786460,1737429031630,-276.9,0.00020696,2]
[349786461,1737429031639,-250.0,0.0002088,2]
[349786462,1737429031649,-1830.12020896,0.0002088,2]
[349786463,1737429031659,-250.0,0.00020894,2]
[349786464,1737429031669,-300.0,0.00020944,2]
[349786465,1737429031678,-23900.0,0.00020945,2]
[349786466,1737429031688,-189.12,0.00021002,2]
[349786467,1737429031701,-661.51,0.00021014,2]
[349786468,1737429031711,-1000.0,0.00021026,2]
[349786469,1737429031721,-676.97,0.00021041,2]
[349786470,1737429031731,-438.48,0.000211,2]
[349786471,1737429031740,-398.86,0.00021178,2]
[349786472,1737429031750,-150.0,0.00021399,2]
[349786473,1737429031759,-5000.0,0.000214,2]
[349786474,1737429031770,-1000.0,0.000214,2]
[349786475,1737429031780,-165.81831613,0.000214,2]
[349786476,1737429031789,-1563.3223,0.000214,2]
[349786477,1737429031799,-2500.0,0.000214,2]
[349786478,1737429031816,-185.97,0.0002142,2]
[349786479,1737429031826,-502.54826994,0.00021473,2]
[349786480,1737429031836,-505.08866928,0.00021473,2]
[349786481,1737429031846,-500.96220588,0.00021473,2]
[349786482,1737429031856,-151.59568369,0.00021473,2]
[349786483,1737429031865,-501.41216421,0.00021473,2]
[349786484,1737429031875,-163.36438511,0.00021473,2]
[349786485,1737429031884,-161.06907304,0.00021473,2]
[349786486,1737429031894,-500.45358545,0.00021473,2]
[349786487,1737429031904,-500.0,0.00021473,2]
[349786488,1737429031914,-170.36,0.0002149,2]
[349786489,1737429031923,-531.08364953,0.00021499,2]
[349786490,1737429031932,-275.360166,0.00021499,2]
[349786491,1737429031941,-518.4578454,0.00021499,2]
[349786492,1737429031953,-519.05372,0.00021499,2]
[349786493,1737429031963,-519.99826183,0.00021499,2]
[349786494,1737429031972,-519.54237368,0.00021499,2]
[349786495,1737429031982,-500.0,0.00021499,2]
[349786496,1737429031991,-158.450321,0.00021499,2]
[349786497,1737429032001,-500.0,0.00021499,2]
[349786498,1737429032011,-500.0,0.00021499,2]
[349786499,1737429032020,-500.0,0.00021499,2]
[349786500,1737429032030,-500.0,0.00021499,2]
[349786501,1737429032040,-500.0,0.00021499,2]
[349786502,1737429032049,-500.0,0.00021499,2]
[349786503,1737429032060,-500.0,0.00021499,2]
[349786504,1737429032070,-500.83684609,0.00021499,2]
[349786505,1737429032080,-500.0,0.00021499,2]
[349786506,1737429032089,-500.0,0.00021499,2]
[349786507,1737429032099,-500.0,0.00021499,2]
[349786508,1737429032109,-595.52,0.00021499,2]
[349786509,1737429032120,-500.0,0.00021499,2]
[349786511,1737429032130,-500.0,0.00021499,2]
[349786513,1737429032141,-500.0,0.00021499,2]
[349786515,1737429032150,-332.02222254,0.00021499,2]
[349786517,1737429032159,-500.0,0.00021499,2]
[349786519,1737429032169,-545.55,0.00021499,2]
[349786521,1737429032178,-426.02881072,0.00021499,2]
[349786522,1737429032187,-615.28,0.00021499,2]
[349786524,1737429032197,-500.0,0.00021499,2]
[349786526,1737429032208,-500.0,0.00021499,2]
[349786528,1737429032218,-500.0,0.00021499,2]
[349786530,1737429032228,-500.0,0.00021499,2]
[349786532,1737429032239,-500.0,0.00021499,2]
[349786535,1737429032251,-500.0,0.00021499,2]
[349786537,1737429032262,-500.0,0.00021499,2]
[349786539,1737429032272,-500.0,0.00021499,2]
[349786540,1737429032282,-500.0,0.00021499,2]
[349786542,1737429032291,-500.0,0.00021499,2]
[349786544,1737429032301,-677.11,0.00021499,2]
[349786546,1737429032318,-500.0,0.00021499,2]
[349786548,1737429032328,-500.0,0.00021499,2]
[349786573,1737429032538,-500.0,0.00021499,2]
[349786575,1737429032548,-500.0,0.00021499,2]
[349786577,1737429032562,-540.34,0.00021499,2]
[349786579,1737429032571,-1209.89,0.00021499,2]
[349786581,1737429032581,-500.0,0.00021499,2]
[349786583,1737429032590,-500.0,0.00021499,2]
[349786585,1737429032600,-500.0,0.00021499,2]
[349786588,1737429032614,-500.0,0.00021499,2]
[349786590,1737429032624,-500.0,0.00021499,2]
[349786591,1737429032633,-500.0,0.00021499,2]
[349786593,1737429032642,-562.34,0.00021499,2]
[349786595,1737429032652,-500.0,0.00021499,2]
[349786597,1737429032664,-500.0,0.00021499,2]
[349786599,1737429032672,-422.29471784,0.00021499,2]
[349786601,1737429032682,-500.0,0.00021499,2]
[349786603,1737429032693,-500.0,0.00021499,2]
[349786605,1737429032702,-500.0,0.00021499,2]
[349786607,1737429032712,-500.0,0.00021499,2]
[349786609,1737429032721,-500.0,0.00021499,2]
[349786611,1737429032731,-500.0,0.00021499,2]
[349786613,1737429032740,-500.0,0.00021499,2]
[349786615,1737429032750,-500.0,0.00021499,2]
[349786617,1737429032759,-592.44,0.00021499,2]
[349786619,1737429032769,-388.92693689,0.00021499,2]
[349786621,1737429032779,-500.0,0.00021499,2]
[349786623,1737429032789,-595.96,0.00021499,2]
[349786625,1737429032798,-500.0,0.00021499,2]
[349786627,1737429032811,-500.0,0.00021499,2]
[349786629,1737429032821,-500.0,0.00021499,2]
[349786631,1737429032830,-792.13,0.00021499,2]
[349786633,1737429032840,-555.20986112,0.00021499,2]
[349786635,1737429032850,-500.0,0.00021499,2]
[349786637,1737429032859,-159.52559837,0.00021499,2]
[349786639,1737429032869,-500.0,0.00021499,2]
[349786641,1737429032879,-522.91,0.00021499,2]
[349786643,1737429032890,-500.0,0.00021499,2]
[349786645,1737429032899,-500.0,0.00021499,2]
[349786647,1737429032909,-500.0,0.00021499,2]
[349786649,1737429032918,-545.92,0.00021499,2]
[349786651,1737429032927,-500.0,0.00021499,2]
[349786653,1737429032937,-500.0,0.00021499,2]
[349786655,1737429032946,-500.0,0.00021499,2]
[349786657,1737429032955,-738.95,0.00021499,2]
[349786659,1737429032965,-508.22374713,0.00021499,2]
[349786661,1737429032974,-560.08,0.00021499,2]
[349786663,1737429032983,-500.0,0.00021499,2]
[349786665,1737429032993,-500.0,0.00021499,2]
[349786667,1737429033002,-300000.0,0.000215,2]
[349786669,1737429033012,-77262.76168524,0.000215,2]
[349786671,1737429033022,-266.54224591,0.000215,2]
[349786672,1737429033031,-234.8428186,0.0002156,2]
[349786674,1737429033041,-12664.0,0.00021562,2]
[349786676,1737429033052,-1497.48938346,0.00021633,2]
[349786677,1737429033065,-170.16,0.00021636,2]
[349786678,1737429033075,-150.0,0.00021675,2]
[349786679,1737429033086,-1024.16,0.00021675,2]
[349786680,1737429033097,-271.72972495,0.00021678,2]
[349786681,1737429033107,-271.72972495,0.00021733,2]
[349786682,1737429033118,-321.73066322,0.00021754,2]
[349786683,1737429033128,-170.36,0.00021763,2]
[349786684,1737429033138,-500.0,0.00021773,2]
[349786685,1737429033149,-500.0,0.00021773,2]
[349786686,1737429033160,-500.0,0.00021773,2]
[349786687,1737429033170,-500.0,0.00021773,2]
[349786688,1737429033181,-500.0,0.00021773,2]
[349786689,1737429033191,-500.0,0.00021773,2]
[349786690,1737429033200,-500.0,0.00021773,2]
[349786691,1737429033210,-500.0,0.00021773,2]
[349786692,1737429033220,-500.0,0.00021773,2]
[349786693,1737429033230,-500.0,0.00021773,2]
[349786694,1737429033240,-595.52,0.00021773,2]
[349786695,1737429033249,-500.0,0.00021773,2]
[349786696,1737429033259,-500.0,0.00021773,2]
[349786697,1737429033268,-500.0,0.00021773,2]
[349786698,1737429033278,-500.0,0.00021773,2]
[349786699,1737429033288,-545.55,0.00021773,2]
[349786700,1737429033298,-615.28,0.00021773,2]
[349786701,1737429033307,-500.0,0.00021773,2]
[349786702,1737429033318,-500.0,0.00021773,2]
[349786703,1737429033328,-500.0,0.00021773,2]
[349786704,1737429033338,-500.0,0.00021773,2]
[349786705,1737429033347,-500.0,0.00021773,2]
[349786706,1737429033356,-500.0,0.00021773,2]
[349786707,1737429033366,-500.0,0.00021773,2]
[349786708,1737429033375,-677.11,0.00021773,2]
[349786709,1737429033385,-500.0,0.00021773,2]
[349786710,1737429033394,-500.0,0.00021773,2]
[349786711,1737429033404,-500.0,0.00021773,2]
[349786712,1737429033413,-500.0,0.00021773,2]
[349786713,1737429033424,-1209.89,0.00021773,2]
[349786714,1737429033434,-500.0,0.00021773,2]
[349786715,1737429033443,-500.0,0.00021773,2]
[349786716,1737429033452,-500.0,0.00021773,2]
[349786717,1737429033462,-500.0,0.00021773,2]
[349786718,1737429033471,-562.34,0.00021773,2]
[349786719,1737429033480,-600.20127931,0.00021773,2]
[349786720,1737429033489,-518.06724969,0.00021773,2]
[349786721,1737429033499,-500.0,0.00021773,2]
[349786722,1737429033509,-500.0,0.00021773,2]
[349786723,1737429033518,-500.0,0.00021773,2]
[349786724,1737429033528,-396.23706199,0.00021773,2]
[349786725,1737429033537,-520.19552692,0.00021773,2]
[349786726,1737429033547,-592.44,0.00021773,2]
[349786727,1737429033557,-500.0,0.00021773,2]
[349786728,1737429033568,-595.96,0.00021773,2]
[349786729,1737429033577,-500.0,0.00021773,2]
[349786730,1737429033587,-500.0,0.00021773,2]
[349786731,1737429033596,-792.13,0.00021773,2]
[349786732,1737429033607,-500.0,0.00021773,2]
[349786733,1737429033617,-500.0,0.00021773,2]
[349786734,1737429033626,-500.0,0.00021773,2]
[349786735,1737429033635,-522.91,0.00021773,2]
[349786736,1737429033645,-500.0,0.00021773,2]
[349786737,1737429033655,-530.53940615,0.00021773,2]
[349786738,1737429033666,-500.0,0.00021773,2]
[349786739,1737429033676,-545.92,0.00021773,2]
[349786740,1737429033686,-520.45986837,0.00021773,2]
[349786741,1737429033698,-500.0,0.00021773,2]
[349786742,1737429033708,-500.0,0.00021773,2]
[349786743,1737429033717,-738.95,0.00021773,2]
[349786744,1737429033727,-560.08,0.00021773,2]
[349786745,1737429033736,-500.0,0.00021773,2]
[349786746,1737429033747,-500.0,0.00021773,2]
[349786747,1737429033757,-271.72972495,0.00021789,2]
[349786748,1737429033766,-500.0,0.00021824,2]
[349786749,1737429033776,-271.72972495,0.00021844,2]
[349786750,1737429033786,-500.0,0.0002189,2]
[349786751,1737429033796,-6700.899,0.000219,2]
[349786752,1737429033806,-804.6619,0.000219,2]
[349786753,1737429033818,-1224.4634,0.000219,2]
[349786754,1737429033828,-1000.0,0.000219,2]
[349786755,1737429033838,-5426.90459136,0.000219,2]
[349786756,1737429033848,-170.4399,0.000219,2]